bitfinex/quotes_SOLUSD_20230703
["timestamp","ask_amount","ask_price","bid_price","bid_amount"]
[1688367675555,21.84,19.368,19.36,21.848]
[1688367675736,78.066,19.368,19.36,21.848]
[1688367680946,180.657,19.368,19.356,91.9119]
[1688367681749,180.657,19.368,19.357,21.851]
[1688367683460,78.066,19.368,19.357,21.851]
[1688367683665,78.066,19.368,19.358,55.0]
[1688367683856,78.066,19.368,19.36,21.848]
[1688367685466,21.84,19.368,19.361,55.0]
[1688367685667,102.563,19.374,19.363,21.845]
[1688367685668,21.838,19.37,19.363,21.845]
[1688367685963,21.834,19.373,19.364,55.0]
[1688367686268,10.83719922,19.383,19.366,78.072]
[1688367686269,21.834,19.374,19.366,78.072]
[1688367686563,21.834,19.374,19.367,55.0]
[1688367686754,21.834,19.374,19.369,21.838]
[1688367689864,21.832,19.376,19.369,21.838]
[1688367696168,21.832,19.376,19.371,21.835]
[1688367704476,21.832,19.376,19.365,102.602]
[1688367704669,21.832,19.376,19.366,56.232]
[1688367704871,21.832,19.376,19.368,78.065]
[1688367705073,21.832,19.376,19.369,55.0]
[1688367705383,21.832,19.376,19.371,21.836]
[1688367712982,21.832,19.376,19.37,21.837]
[1688367713189,21.832,19.376,19.366,56.232]
[1688367714091,21.832,19.376,19.369,21.837]
[1688367715374,21.83,19.377,19.369,21.837]
[1688367715687,21.83,19.377,19.368,56.226]
[1688367715688,21.83,19.377,19.372,21.835]
[1688367717290,78.03,19.377,19.369,21.838]
[1688367720776,21.83,19.377,19.369,21.838]
[1688367724692,78.03,19.377,19.369,21.838]
[1688367726499,21.83,19.377,19.369,21.838]
[1688367728699,21.83,19.377,19.369,78.061]
[1688367729598,21.828,19.378,19.369,78.061]
[1688367729896,102.514,19.383,19.369,78.061]
[1688367730198,21.83,19.377,19.369,78.061]
[1688367734486,56.188,19.382,19.37,55.0]
[1688367734680,21.828,19.378,19.373,21.833]
[1688367740509,56.179,19.385,19.374,55.0]
[1688367740709,21.824,19.383,19.377,21.829]
[1688367741506,21.824,19.383,19.371,91.9457]
[1688367743109,21.824,19.383,19.374,21.833]
[1688367745300,21.824,19.383,19.374,78.042]
[1688367749800,21.824,19.383,19.363,10.83719922]
[1688367749801,22.07,19.38,19.372,21.834]
[1688367750001,21.829,19.378,19.372,21.834]
[1688367750396,21.829,19.378,19.371,21.836]
[1688367751121,78.026,19.378,19.371,21.836]
[1688367753323,78.026,19.378,19.369,21.838]
[1688367770534,78.026,19.378,19.37,22.23]
[1688367770721,78.026,19.378,19.371,21.836]
[1688367774714,21.829,19.378,19.371,21.836]
[1688367774921,21.829,19.378,19.372,55.0]
[1688367775136,21.829,19.378,19.373,21.833]
[1688367776616,21.828,19.379,19.373,21.833]
[1688367778433,21.827,19.38,19.373,21.833]
[1688367783744,21.825,19.381,19.373,21.833]
[1688367785044,21.824,19.382,19.373,21.833]
[1688367795563,21.823,19.383,19.373,21.833]
[1688367804687,26.44949287,19.386,19.374,55.0]
[1688367804962,21.821,19.385,19.377,78.028]
[1688367806961,21.821,19.385,19.377,21.829]
[1688367814664,47.41520124,19.385,19.377,21.829]
[1688367814867,21.821,19.385,19.377,21.829]
[1688367817461,21.821,19.385,19.376,21.83]
[1688367831969,21.821,19.385,19.377,55.0]
[1688367832165,21.821,19.385,19.379,21.827]
[1688367833977,21.821,19.385,19.38,22.23]
[1688367834175,21.821,19.385,19.381,21.824]
[1688367834994,21.821,19.385,19.38,22.23]
[1688367835203,26.46501648,19.392,19.38,22.23]
[1688367835384,21.821,19.385,19.38,22.23]
[1688367835681,21.821,19.385,19.38,44.056]
[1688367836481,21.821,19.385,19.38,22.23]
[1688367836683,77.998,19.385,19.38,22.23]
[1688367836992,77.998,19.385,19.377,55.0]
[1688367837374,21.821,19.385,19.378,21.828]
[1688367840378,21.821,19.385,19.379,76.826]
[1688367840680,21.821,19.385,19.379,21.826]
[1688367841889,21.821,19.385,19.378,21.828]
[1688367859904,21.821,19.385,19.379,55.0]
[1688367860114,21.821,19.385,19.38,21.825]
[1688367864412,56.159,19.392,19.38,44.055]
[1688367864602,56.151,19.395,19.381,55.0]
[1688367864803,21.814,19.391,19.386,21.819]
[1688367865011,21.814,19.392,19.386,21.819]
[1688367865205,21.811,19.394,19.386,77.993]
[1688367865507,21.811,19.394,19.387,55.0]
[1688367865814,56.138,19.399,19.389,21.816]
[1688367865815,21.81,19.395,19.389,21.816]
[1688367871222,56.135,19.4,19.389,21.816]
[1688367871523,20.0,19.399,19.39,22.23]
[1688367871725,21.809,19.396,19.392,21.812]
[1688367872016,21.807,19.397,19.392,21.812]
[1688367872325,21.805,19.4,19.392,21.812]
[1688367872627,21.805,19.4,19.395,21.809]
[1688367874312,21.803,19.401,19.395,21.809]
[1688367875110,21.802,19.402,19.395,21.809]
[1688367875512,21.802,19.402,19.395,77.957]
[1688367875920,21.801,19.403,19.395,77.957]
[1688367879917,21.801,19.403,19.396,55.0]
[1688367880137,21.801,19.403,19.398,21.806]
[1688367887541,21.799,19.404,19.398,21.806]
[1688367888140,25.61106796,19.408,19.398,21.806]
[1688367888645,21.8,19.404,19.398,21.806]
[1688367901555,77.922,19.404,19.397,21.807]
[1688367903057,21.8,19.404,19.397,21.807]
[1688367904055,21.8,19.404,19.395,56.147]
[1688367904056,77.922,19.404,19.395,21.808]
[1688367908861,21.8,19.404,19.395,77.956]
[1688367909450,21.8,19.404,19.396,55.0]
[1688367909653,21.8,19.404,19.398,21.805]
[1688367915356,21.8,19.404,19.399,55.0]
[1688367915578,21.8,19.404,19.4,21.803]
[1688367916867,21.8,19.404,19.394,56.149]
[1688367918158,21.8,19.404,19.396,21.808]
[1688367918664,21.8,19.404,19.396,77.953]
[1688367920571,21.8,19.404,19.395,21.809]
[1688367920870,21.8,19.404,19.39,22.23]
[1688367921078,180.371,19.399,19.387,21.818]
[1688367921556,10.83719922,19.398,19.387,21.818]
[1688367921879,21.81,19.395,19.387,21.818]
[1688367924670,21.808,19.396,19.387,21.818]
[1688367924876,56.139,19.399,19.388,55.0]
[1688367925081,56.139,19.399,19.391,21.813]
[1688367925082,21.809,19.395,19.391,21.813]
[1688367926585,21.809,19.395,19.383,158.692]
[1688367926762,77.957,19.395,19.387,21.817]
[1688367930363,21.809,19.395,19.387,77.988]
[1688367930566,21.809,19.395,19.388,55.0]
[1688367930779,21.809,19.395,19.39,21.815]
[1688367935487,56.132,19.401,19.391,55.0]
[1688367935693,21.806,19.398,19.394,21.81]
[1688367936980,21.805,19.4,19.394,21.81]
[1688367941605,25.31360421,19.405,19.394,21.81]
[1688367941606,21.803,19.401,19.394,21.81]
[1688367941770,56.115,19.407,19.395,55.0]
[1688367942084,21.802,19.402,19.398,21.805]
[1688367942687,77.93,19.402,19.39,22.23]
[1688367942869,77.93,19.402,19.39,44.044]
[1688367943075,22.07,19.4,19.388,56.168]
[1688367943273,22.07,19.4,19.38,22.23]
[1688367943274,21.811,19.394,19.387,21.817]
[1688367943697,21.811,19.394,19.384,56.18]
[1688367943698,77.962,19.394,19.384,21.821]
[1688367943898,77.962,19.394,19.386,21.819]
[1688367947990,77.962,19.394,19.385,21.82]
[1688367949178,77.962,19.394,19.381,21.825]
[1688367949388,77.962,19.394,19.374,56.206]
[1688367949389,22.07,19.39,19.374,56.206]
[1688367949693,77.996,19.386,19.377,21.829]
[1688367950101,77.996,19.386,19.375,21.832]
[1688367951281,77.996,19.386,19.374,21.833]
[1688367953893,77.996,19.386,19.374,78.042]
[1688367954099,21.82,19.386,19.375,55.0]
[1688367954278,21.82,19.386,19.378,21.828]
[1688367958908,21.82,19.386,19.377,21.829]
[1688367967894,21.82,19.386,19.371,92.111]
[1688367968095,21.82,19.386,19.372,55.0]
[1688367968294,21.82,19.386,19.376,21.831]
[1688367974430,21.82,19.386,19.377,55.0]
[1688367974601,21.82,19.386,19.379,21.826]
[1688367974806,21.82,19.386,19.38,77.23]
[1688367975016,21.82,19.386,19.381,21.824]
[1688367978427,21.814,19.392,19.382,55.0]
[1688367978714,21.809,19.396,19.385,77.997]
[1688367978932,21.809,19.396,19.388,21.816]
[1688367980138,21.807,19.398,19.388,21.816]
[1688367980312,21.807,19.398,19.39,22.23]
[1688367980617,21.805,19.399,19.392,21.812]
[1688367984110,10.83719922,19.404,19.392,21.812]
[1688367984321,21.8,19.403,19.392,21.812]
[1688367985427,21.799,19.404,19.392,21.812]
[1688367985604,10.83719922,19.409,19.396,180.388]
[1688367985805,20.0,19.408,19.396,180.388]
[1688367986008,21.797,19.406,19.4,21.803]
[1688367986621,41.796,19.408,19.4,77.937]
[1688367988417,21.796,19.408,19.4,77.937]
[1688367988612,21.796,19.408,19.401,55.0]
[1688367988813,21.794,19.409,19.403,21.8]
[1688367992018,21.793,19.41,19.403,21.8]
[1688367995414,25.88622709,19.416,19.403,21.8]
[1688367995621,91.89,19.43,19.403,21.8]
[1688367995622,33.97040965,19.424,19.404,55.0]
[1688367995928,21.788,19.415,19.41,21.792]
[1688367996506,21.788,19.415,19.404,56.119]
[1688367998028,21.788,19.415,19.404,77.918]
[1688368000525,21.788,19.415,19.39,110.55]
[1688368000526,55.0,19.414,19.398,102.43]
[1688368000730,55.0,19.414,19.4,21.803]
[1688368000731,77.899,19.41,19.4,21.803]
[1688368001030,77.899,19.41,19.399,21.804]
[1688368001031,20.0,19.409,19.399,21.804]
[1688368001235,21.797,19.406,19.399,21.804]
[1688368004532,21.797,19.406,19.4,55.0]
[1688368004723,21.797,19.406,19.401,21.802]
[1688368005124,56.107,19.41,19.401,21.802]
[1688368005331,21.797,19.406,19.401,21.802]
[1688368010354,77.913,19.406,19.398,97.5357]
[1688368010645,77.913,19.406,19.392,21.813]
[1688368010937,88.75019922,19.406,19.391,21.814]
[1688368011126,88.75019922,19.406,19.39,51.815]
[1688368011437,20.0,19.409,19.388,41.816]
[1688368011438,180.361,19.4,19.388,41.816]
[1688368011646,180.361,19.4,19.388,97.984]
[1688368012523,180.361,19.4,19.39,21.814]
[1688368013431,77.938,19.4,19.39,21.814]
[1688368014419,21.804,19.4,19.39,77.976]
[1688368028226,21.804,19.4,19.39,21.814]
[1688368028430,75.0,19.399,19.39,21.814]
[1688368028746,77.951,19.397,19.39,21.814]
[1688368030340,77.951,19.397,19.385,158.675]
[1688368030545,77.951,19.397,19.389,21.816]
[1688368033151,77.951,19.397,19.385,56.175]
[1688368033334,77.951,19.397,19.388,21.817]
[1688368037140,21.808,19.397,19.388,21.817]
[1688368040861,26.80431036,19.422,19.389,20.0]
[1688368041046,21.804,19.401,19.394,21.81]
[1688368041354,26.13259541,19.406,19.394,21.81]
[1688368041355,21.802,19.402,19.394,21.81]
[1688368041941,67.12760887,19.41,19.394,124.264]
[1688368042253,21.801,19.403,19.394,124.264]
[1688368046151,21.801,19.403,19.394,21.81]
[1688368058972,55.0,19.402,19.394,21.81]
[1688368059175,21.804,19.4,19.394,21.81]
[1688368060875,20.0,19.399,19.387,56.168]
[1688368061068,21.809,19.396,19.39,21.814]
[1688368061459,21.809,19.396,19.389,21.816]
[1688368065496,21.809,19.396,19.388,21.817]
[1688368066983,21.809,19.396,19.388,77.985]
[1688368067161,21.807,19.397,19.388,77.985]
[1688368072764,77.949,19.397,19.388,21.817]
[1688368075883,21.807,19.397,19.388,21.817]
[1688368077260,21.807,19.397,19.387,99.8813]
[1688368077261,77.949,19.397,19.387,99.8813]
[1688368077464,77.949,19.397,19.387,121.6983]
[1688368079380,55.0,19.396,19.387,121.6983]
[1688368079580,21.811,19.394,19.387,121.6983]
[1688368081779,21.811,19.394,19.381,56.186]
[1688368081987,21.815,19.391,19.384,21.821]
[1688368082889,21.813,19.392,19.384,78.001]
[1688368083280,21.812,19.393,19.384,78.001]
[1688368086197,40.66381521,19.407,19.384,78.001]
[1688368086381,21.812,19.393,19.384,78.001]
[1688368088482,43.775,19.39,19.383,21.822]
[1688368088696,43.775,19.39,19.376,91.5105]
[1688368088897,43.775,19.39,19.379,21.827]
[1688368088898,75.0,19.389,19.379,21.827]
[1688368089193,21.819,19.386,19.379,21.827]
[1688368093490,21.819,19.387,19.379,21.827]
[1688368103799,21.819,19.387,19.378,21.828]
[1688368123111,55.0,19.386,19.378,21.828]
[1688368123308,21.822,19.384,19.378,21.828]
[1688368126328,25.97304297,19.388,19.378,78.025]
[1688368126703,20.0,19.389,19.378,78.025]
[1688368126907,55.0,19.388,19.378,78.025]
[1688368127102,55.0,19.389,19.378,78.025]
[1688368127504,20.0,19.39,19.378,78.025]
[1688368127720,21.815,19.39,19.378,78.025]
[1688368127922,20.0,19.389,19.378,78.025]
[1688368128628,41.816,19.389,19.378,78.025]
[1688368130707,21.814,19.392,19.383,78.006]
[1688368131923,21.814,19.392,19.383,21.823]
[1688368132711,21.814,19.392,19.376,194.0575]
[1688368132911,55.0,19.391,19.382,21.824]
[1688368133126,21.817,19.389,19.38,21.826]
[1688368133430,65.83719922,19.388,19.377,92.0916]
[1688368133617,21.821,19.385,19.378,21.828]
[1688368136431,21.821,19.385,19.377,92.0916]
[1688368137230,21.821,19.385,19.377,113.9206]
[1688368144318,21.821,19.385,19.377,21.829]
[1688368144518,55.0,19.384,19.377,21.829]
[1688368144720,21.824,19.382,19.377,21.829]
[1688368144922,21.823,19.383,19.377,21.829]
[1688368149343,21.82,19.386,19.377,21.829]
[1688368149638,47.52829566,19.387,19.377,21.829]
[1688368150026,21.819,19.387,19.377,21.829]
[1688368150824,113.30319922,19.392,19.377,21.829]
[1688368151138,21.818,19.387,19.377,21.829]
[1688368157047,21.818,19.387,19.376,21.83]
[1688368157355,158.657,19.388,19.376,21.83]
[1688368157356,21.824,19.382,19.376,21.831]
[1688368160348,55.0,19.386,19.376,21.831]
[1688368160528,21.822,19.384,19.376,124.38]
[1688368161532,21.821,19.385,19.376,124.38]
[1688368161838,21.82,19.386,19.376,124.38]
[1688368164649,21.82,19.386,19.376,21.831]
[1688368164858,77.994,19.386,19.376,21.831]
[1688368166854,92.42101815,19.389,19.376,21.831]
[1688368167043,41.818,19.388,19.38,22.22]
[1688368167246,41.818,19.388,19.382,21.823]
[1688368167450,20.0,19.388,19.382,78.009]
[1688368168047,20.0,19.393,19.382,78.009]
[1688368168645,21.817,19.389,19.382,78.009]
[1688368168845,20.0,19.388,19.382,78.009]
[1688368169059,56.156,19.393,19.382,78.009]
[1688368169336,10.83719922,19.397,19.382,78.009]
[1688368169553,21.815,19.391,19.382,78.009]
[1688368169750,56.148,19.395,19.382,78.009]
[1688368169952,21.812,19.393,19.383,55.0]
[1688368170137,21.812,19.393,19.388,21.817]
[1688368172456,102.434,19.398,19.388,21.817]
[1688368172457,21.807,19.398,19.388,21.817]
[1688368172749,21.805,19.399,19.394,21.81]
[1688368172951,20.0,19.398,19.394,21.81]
[1688368177951,21.805,19.399,19.394,21.81]
[1688368178459,20.0,19.398,19.394,21.81]
[1688368178757,41.806,19.398,19.394,21.81]
[1688368180550,41.806,19.398,19.39,22.22]
[1688368180551,41.806,19.398,19.392,21.812]
[1688368183262,41.806,19.398,19.391,21.814]
[1688368198074,21.802,19.402,19.391,21.814]
[1688368204071,66.95019922,19.408,19.391,21.814]
[1688368204268,55.0,19.407,19.391,21.814]
[1688368205177,21.799,19.405,19.391,21.814]
[1688368206075,21.799,19.405,19.391,112.2416]
[1688368208073,21.799,19.405,19.395,77.953]
[1688368212068,158.462,19.412,19.395,77.953]
[1688368212267,20.0,19.409,19.396,55.0]
[1688368212466,21.795,19.408,19.4,77.936]
[1688368214475,20.0,19.409,19.4,77.936]
[1688368215682,41.793,19.41,19.4,77.936]
[1688368215884,20.0,19.409,19.4,77.936]
[1688368216585,21.793,19.41,19.401,55.0]
[1688368216785,66.93019922,19.414,19.403,77.922]
[1688368216786,21.788,19.414,19.403,77.922]
[1688368216980,21.788,19.414,19.404,55.0]
[1688368217176,21.788,19.414,19.407,77.909]
[1688368218274,102.314,19.421,19.407,77.909]
[1688368218476,21.787,19.415,19.407,77.909]
[1688368220173,21.786,19.416,19.407,77.909]
[1688368222283,21.786,19.416,19.407,21.796]
[1688368225189,77.873,19.416,19.407,21.796]
[1688368225497,55.0,19.415,19.407,21.796]
[1688368225793,21.789,19.413,19.407,21.796]
[1688368227484,55.0,19.412,19.401,102.412]
[1688368227687,21.794,19.409,19.401,56.128]
[1688368229181,21.794,19.409,19.404,21.799]
[1688368230296,55.0,19.412,19.404,21.799]
[1688368230680,21.794,19.409,19.404,21.799]
[1688368231700,55.0,19.408,19.403,21.8]
[1688368231895,76.796,19.408,19.403,21.8]
[1688368233196,21.796,19.408,19.403,21.8]
[1688368233586,56.099,19.412,19.403,21.8]
[1688368233793,75.0,19.411,19.403,21.8]
[1688368233997,21.794,19.409,19.403,21.8]
[1688368240007,21.794,19.409,19.395,98.9592]
[1688368240008,55.0,19.408,19.395,98.9592]
[1688368240200,21.798,19.405,19.4,21.803]
[1688368240393,21.8,19.403,19.4,21.803]
[1688368241418,21.8,19.403,19.399,21.804]
[1688368242191,21.8,19.403,19.395,98.9592]
[1688368242396,55.0,19.402,19.395,98.9592]
[1688368242598,21.804,19.4,19.397,21.807]
[1688368245307,21.804,19.4,19.395,120.7672]
[1688368245598,21.804,19.4,19.395,21.808]
[1688368250008,21.806,19.398,19.395,21.808]
[1688368251509,21.806,19.398,19.394,21.81]
[1688368251710,21.806,19.398,19.393,21.811]
[1688368251901,21.806,19.398,19.389,56.165]
[1688368251902,55.0,19.397,19.391,21.813]
[1688368252211,21.809,19.396,19.391,21.813]
[1688368254812,76.807,19.397,19.391,21.813]
[1688368259917,55.0,19.397,19.391,21.813]
[1688368260700,55.0,19.397,19.391,77.973]
[1688368263717,21.805,19.399,19.391,77.973]
[1688368263922,55.0,19.398,19.391,77.973]
[1688368264721,76.806,19.398,19.391,77.973]
[1688368266123,102.39,19.407,19.391,77.973]
[1688368266309,21.802,19.402,19.391,77.973]
[1688368267408,55.0,19.401,19.391,77.973]
[1688368268133,76.803,19.401,19.391,77.973]
[1688368272216,132.934,19.401,19.391,21.813]
[1688368275841,132.934,19.401,19.389,21.816]
[1688368276026,88.77119922,19.401,19.389,21.816]
[1688368276219,77.934,19.401,19.389,21.816]
[1688368277514,21.807,19.397,19.389,21.816]
[1688368279335,21.806,19.398,19.389,21.816]
[1688368282827,21.805,19.399,19.389,21.816]
[1688368286921,55.0,19.398,19.389,21.816]
[1688368287128,76.807,19.398,19.389,21.816]
[1688368290241,102.407,19.403,19.389,21.816]
[1688368290546,25.26244823,19.404,19.389,21.816]
[1688368290547,56.125,19.404,19.389,21.816]
[1688368291557,55.0,19.403,19.389,21.816]
[1688368292151,21.803,19.401,19.389,21.816]
[1688368299644,21.803,19.401,19.39,22.01]
[1688368299851,21.803,19.401,19.393,21.811]
[1688368304154,55.0,19.4,19.393,21.811]
[1688368304361,21.806,19.398,19.393,21.811]
[1688368326163,21.805,19.399,19.393,21.811]
[1688368329555,55.0,19.398,19.393,21.811]
[1688368329756,21.808,19.397,19.393,21.811]
[1688368333983,76.806,19.398,19.393,21.811]
[1688368334573,25.43047849,19.407,19.393,21.811]
[1688368334574,56.125,19.403,19.393,21.811]
[1688368334881,21.803,19.401,19.393,21.811]
[1688368363204,21.801,19.402,19.393,21.811]
[1688368363406,21.8,19.404,19.393,21.811]
[1688368363613,21.798,19.405,19.393,21.811]
[1688368365496,55.0,19.404,19.393,21.811]
[1688368365797,21.801,19.403,19.393,21.811]
[1688368366496,55.0,19.402,19.393,21.811]
[1688368366699,21.803,19.401,19.393,21.811]
[1688368371620,55.0,19.4,19.393,21.811]
[1688368371802,21.806,19.398,19.393,21.811]
[1688368378422,21.805,19.399,19.393,21.811]
[1688368383637,76.804,19.4,19.393,21.811]
[1688368383815,55.0,19.4,19.393,21.811]
[1688368384127,76.804,19.4,19.393,21.811]
[1688368393926,21.804,19.4,19.393,21.811]
[1688368394441,21.802,19.402,19.393,21.811]
[1688368394623,55.0,19.401,19.393,21.811]
[1688368395323,21.802,19.402,19.393,21.811]
[1688368432469,55.0,19.401,19.393,21.811]
[1688368432763,21.805,19.399,19.393,21.811]
[1688368435692,55.0,19.401,19.39,22.11]
[1688368435884,21.805,19.399,19.393,21.811]
[1688368438372,21.808,19.397,19.393,21.811]
[1688368442273,51.53,19.419,19.393,77.965]
[1688368442477,21.796,19.407,19.393,180.424]
[1688368443762,21.794,19.409,19.4,22.18]
[1688368443967,21.794,19.409,19.403,21.799]
[1688368456872,158.451,19.413,19.403,21.799]
[1688368456873,21.793,19.41,19.403,21.799]
[1688368473902,56.09,19.416,19.403,21.799]
[1688368474195,55.0,19.415,19.403,21.799]
[1688368475099,21.789,19.413,19.403,21.799]
[1688368481499,55.0,19.412,19.403,21.799]
[1688368481697,21.789,19.413,19.403,21.799]
[1688368486010,55.0,19.412,19.403,21.799]
[1688368486192,21.793,19.41,19.403,21.799]
[1688368486398,55.0,19.409,19.4,21.803]
[1688368486593,21.797,19.407,19.4,21.803]
[1688368486805,55.0,19.406,19.4,21.803]
[1688368487014,21.799,19.405,19.4,21.803]
[1688368487917,21.795,19.408,19.4,43.983]
[1688368488096,21.794,19.409,19.4,43.983]
[1688368492100,56.09,19.416,19.4,54.82019922]
[1688368492318,21.79,19.412,19.4,54.82019922]
[1688368492500,21.79,19.412,19.401,91.2674]
[1688368492815,21.79,19.412,19.404,77.92]
[1688368504326,21.79,19.412,19.404,21.799]
[1688368506706,21.79,19.412,19.404,77.921]
[1688368513430,21.79,19.412,19.404,21.799]
[1688368513622,55.0,19.411,19.404,21.799]
[1688368513821,21.794,19.409,19.404,21.799]
[1688368514435,56.092,19.415,19.404,21.799]
[1688368514436,21.792,19.41,19.404,21.799]
[1688368515527,55.0,19.409,19.404,21.799]
[1688368515725,21.795,19.408,19.404,21.799]
[1688368516536,21.795,19.408,19.402,21.801]
[1688368516537,55.0,19.407,19.402,21.801]
[1688368516835,21.797,19.406,19.4,21.803]
[1688368517043,21.799,19.404,19.4,21.803]
[1688368518133,55.0,19.403,19.4,21.803]
[1688368518433,76.801,19.403,19.399,21.804]
[1688368519439,76.801,19.403,19.398,21.806]
[1688368521835,22.01,19.41,19.398,21.806]
[1688368521836,21.799,19.405,19.398,21.806]
[1688368522339,22.01,19.41,19.4,22.11]
[1688368522543,21.796,19.408,19.403,21.8]
[1688368525246,21.793,19.41,19.403,21.8]
[1688368529526,56.093,19.415,19.403,21.8]
[1688368529527,21.792,19.411,19.403,21.8]
[1688368531351,21.783,19.418,19.404,20.0]
[1688368531542,21.783,19.418,19.408,77.904]
[1688368531740,21.783,19.418,19.411,21.79]
[1688368532252,104.21392115,19.42,19.411,21.79]
[1688368532253,26.02792115,19.42,19.411,21.79]
[1688368532443,22.11,19.43,19.411,21.79]
[1688368532647,21.781,19.421,19.411,21.79]
[1688368532850,21.78,19.421,19.411,21.79]
[1688368533157,77.853,19.421,19.411,21.79]
[1688368533453,21.784,19.418,19.411,21.79]
[1688368533649,21.787,19.416,19.411,21.79]
[1688368534159,55.0,19.42,19.411,21.79]
[1688368534465,21.783,19.418,19.411,21.79]
[1688368537657,76.782,19.42,19.411,21.79]
[1688368538056,102.292,19.425,19.411,21.79]
[1688368538057,21.78,19.421,19.411,21.79]
[1688368538254,21.779,19.422,19.411,21.79]
[1688368539555,55.0,19.421,19.411,21.79]
[1688368539857,76.78,19.421,19.411,21.79]
[1688368560564,21.78,19.421,19.411,21.79]
[1688368561186,21.779,19.422,19.411,21.79]
[1688368567180,21.779,19.422,19.411,32.62719922]
[1688368572365,329.2,19.439,19.411,32.62719922]
[1688368572569,21.778,19.423,19.412,10.83719922]
[1688368572777,56.049,19.43,19.415,180.214]
[1688368572980,56.049,19.43,19.42,21.781]
[1688368572981,21.774,19.427,19.42,21.781]
[1688368573180,21.774,19.427,19.412,10.83719922]
[1688368573483,21.774,19.427,19.413,56.094]
[1688368573778,21.774,19.427,19.417,21.784]
[1688368573987,21.774,19.427,19.414,21.788]
[1688368574283,22.11,19.43,19.414,21.788]
[1688368574284,77.847,19.423,19.414,21.788]
[1688368574479,21.782,19.42,19.414,21.788]
[1688368574780,21.784,19.418,19.414,21.788]